{"text_format":"3","workbook":"xlsx","n_sheets":1,"sheets":["2023高校"],"not_rendered":{"defined_names":2},"read":"whole","date_system":"1900"}

{"sheet":"2023高校","index":0,"n_rows":84,"n_cols":10,"rows_kept":84,"merged":[[1,0,1,9],[2,0,3,0],[2,1,3,1],[2,2,3,2],[2,3,3,3],[2,4,2,7],[2,8,3,8],[2,9,3,9],[5,0,6,0],[5,9,6,9],[7,0,12,0],[7,9,12,9],[13,0,14,0],[13,9,14,9],[15,0,17,0],[15,9,17,9],[19,0,22,0],[19,9,22,9],[23,0,26,0],[23,9,26,9],[27,0,30,0],[27,9,30,9],[31,0,37,0],[31,9,37,9],[38,0,40,0],[38,9,40,9],[41,0,55,0],[41,9,55,9],[56,0,64,0],[56,9,64,9],[65,0,67,0],[65,9,67,9],[68,0,70,0],[68,9,70,9],[71,9,82,9],[76,0,82,0],[83,0,83,3]]}
["附件"]
["安徽建工集团招聘岗位表"]
["单位","岗位\n编号","招聘岗位","招聘专业","学历层次",{"$nulls":3},"招聘\n人数","咨询电话"]
[{"$nulls":4},"博研","硕研","本科","大专"]
["安徽建工第二建设\n集团有限公司","00101","综合事务员","中文、行政管理、汉语言文学、新闻学、哲学等相关专业",null,1,null,null,{"$f":"SUM(E5:H5)","v":1},"0551-64461169"]
["安徽建工三建集团\n有限公司","00201","技术员","土木工程、工程管理、市政工程等工程类专业",null,2,null,null,2,"0551-62863075"]
[null,"00202","行政专员","行政管理、公共事业管理、劳动与社会保障、人力资源管理等专业",null,null,1,null,1]
["安徽建工集团建筑机械智能制造有限公司","00301","科研人员","机械设计制造及其自动化、电气工程等相关专业",null,3,null,null,3,"0551-63828612"]
[null,"00302","技术员","机械设计制造及其自动化、电气工程、自动控制等相关专业",null,null,3,null,3]
[null,"00303","施工员","土木工程、机械工程等相关专业",null,null,2,null,2]
[null,"00304","法务专员","法学类相关专业\n（要求法律职业资格A证）",null,null,1,null,1]
[null,"00305","综合事务员","中文、行政管理、汉语言文学、新闻学、哲学等相关专业",null,null,1,null,1]
[null,"00306","会计/出纳","财务管理、会计、金融、经济等财经类专业",null,null,1,null,1]
["安徽水利开发\n有限公司","00401","技术员","土木工程、工程管理、水利工程、道桥工程等工程类相关专业",null,5,null,null,5,"0552-2152921"]
[null,"00402","综合事务员","中文、行政管理、汉语言文学、新闻学、哲学等相关专业",null,4,null,null,4]
["安徽建工建设投资\n集团有限公司","00501","设计师","土木工程、给排水、风景园林、结构计算类、电子监控类相关专业",null,1,null,null,1,"0551-65837149"]
[null,"00502","技术员","土木工程、测绘工程、交通工程等工程类专业",null,1,null,null,1]
[null,"00503","综合事务员","中文、行政管理、汉语言文学、新闻学、哲学等相关专业",null,1,null,null,1]
["安徽省公路桥梁工程有限公司","00601","技术员","土木工程、道桥工程、测绘工程、交通工程等工程类专业",null,3,null,null,3,"0551-65141327"]
["安徽建工路港建设\n集团有限公司","00701","信息化专员","软件工程、计算机科学与技术等相关专业",null,1,null,null,1,"0551-64483237"]
[null,"00702","人力专员","人力资源管理、劳动关系学、劳动与社会保障、行政管理等相关专业",null,2,null,null,2]
[null,"00703","科研人员","土木工程、港航工程、结构力学、无机非金属材料工程等相关专业",1,{"$nulls":3},1]
[null,"00704","战略管理研究专员","管理科学与工程等",null,1,null,null,1]
["安徽省建筑科学\n研究设计院","00801","设计师","建筑学、土木工程、结构工程、环境设计、城乡规划等相关专业",null,3,null,null,3,"0551-62621836"]
[null,"00802","科研人员","结构工程、岩土工程等工程类专业",1,{"$nulls":3},1]
[null,"00803","监理员","建筑工程、土木工程、市政工程、机电安装等工程类专业",null,null,4,null,4]
[null,"00804","技术员","土木工程、工程管理等工程类专业",null,null,1,null,1]
["安徽建工交通航务\n集团有限公司","00901","技术员","土木工程、交通工程、道桥工程、港航工程等工程类专业",null,null,14,null,14,"0551-64482868"]
[null,"00902","安全员","安全工程、安全管理等工程类相关专业",null,null,4,null,4]
[null,"00903","造价员","工程造价、土木工程等工程类专业",null,null,3,null,3]
[null,"00904","党务专员","中文、汉语言文学、新闻学、思想政治、哲学等相关专业\n（要求党员）",null,null,2,null,2]
["安徽建工建材科技\n集团有限公司","01001","商务专员","电子商务类、财经类、管理学类、计算机类、电子信息类、新闻学类\n等相关专业",null,1,4,null,5,"0551-66186590"]
[null,"01002","技术研发员","材料科学与工程等材料类、工程类相关专业",null,5,null,null,5]
[null,"01003","试验员","无机非金属材料工程、高分子材料与工程、材料化学相关专业",null,null,4,2,6]
[null,"01004","核算员","统计学类、财经类、工程类相关专业",null,2,null,null,2]
[null,"01005","生产调度员","工程类、物流类、化工类相关专业",null,null,2,null,2]
[null,"01006","材料员","工程管理、物流工程、物流管理等相关专业",null,null,3,null,3]
[null,"01007","设备管理员","机械工程、机械设计制造及其、自动化、机电一体化等机电类专业",null,null,5,2,7]
["安徽建工检测科技\n集团有限公司","01101","科研人员","结构工程、岩土工程等工程类专业",1,{"$nulls":3},1,"0551-65152262"]
[null,"01102","试验检测员","土木工程、交通工程、化学、材料工程、机电工程等相关专业",null,1,11,null,12]
[null,"01103","综合事务员","中文、行政管理、汉语言文学、新闻学、哲学等相关专业",null,null,2,null,2]
["安徽建工技师学院","01201","专职教师","美术学、设计学、艺术设计相关专业",null,2,null,null,{"$f":"SUM(E42:H42)","v":2},"0551-63420961"]
[null,"01202","专职教师","计算机科学与技术相关专业",null,2,null,null,2]
[null,"01203","专职教师","管理科学与工程、工商管理相关专业",null,1,null,null,1]
[null,"01204","专职教师","历史学",null,2,null,null,2]
[null,"01205","专职教师","中国语言文学类",null,2,null,null,2]
[null,"01206","专职教师","车辆工程",null,1,null,null,1]
[null,"01207","专职教师","机械制造",null,1,1,null,2]
[null,"01208","专职教师","土木工程相关专业",null,1,null,null,1]
[null,"01209","专职教师","道路桥梁相关专业",null,1,null,null,1]
[null,"01210","专职教师","建筑设备安装相关专业",null,1,null,null,1]
[null,"01211","专职教师","艺术环境设计",null,1,null,null,1]
[null,"01212","专职教师","音乐表演、音乐学、音乐教育相关专业",null,null,1,null,1]
[null,"01213","专职教师","交通运输",null,null,1,null,1]
[null,"01214","建筑实验室管理员","土木工程、材料工程相关专业",null,1,null,null,1]
[null,"01215","计算机网络中心管理员","信息与通信工程、计算机科学与技术相关专业",null,1,null,null,1]
["安徽建工集团\n总承包公司","01301","投建管理","城乡规划、土地资源管理、工程管理等相关专业",null,2,3,null,5,"0551-62865670"]
[null,"01302","技术员","土木工程、工程管理等工程类专业",null,null,18,null,18]
[null,"01303","质量员","土木工程、工程管理等工程类专业",null,4,6,null,10]
[null,"01304","安全员","安全工程、安全管理等工程类相关专业",null,null,15,null,15]
[null,"01305","核算员","工程造价、工程管理等工程类专业",null,null,10,null,10]
[null,"01306","市场开发专员","工程管理、工商管理、市场营销等相关专业",null,2,8,null,10]
[null,"01307","综合事务员","中文、行政管理、汉语言文学、新闻学、哲学等相关专业",null,1,5,null,6]
[null,"01308","会计/出纳","财务管理、会计、金融、经济等财经类专业",null,1,9,null,10]
[null,"01309","设计师","建筑学、结构工程、土木工程、室内设计等工程类专业",null,8,2,null,10]
["安徽建工集团投资\n管理公司","01401","综合事务员","中文、行政管理、汉语言文学、新闻学、哲学等相关专业",null,2,11,null,{"$f":"SUM(E66:H66)","v":13},"0551-65501028"]
[null,"01402","会计/出纳","财务管理、会计、金融、经济等财经类专业",null,1,7,null,8]
[null,"01403","项目公司建管部办事员","土木工程、工程管理等工程类相关专业",null,7,9,null,16]
["安徽建工集团金融\n发展公司","01501","综合事务员","中文、行政管理、汉语言文学、新闻学、哲学等相关专业",null,1,null,null,1,"0551-62879720"]
[null,"01502","金融业务员","金融、法律、财会、经济学、保险学等相关专业",null,5,null,null,5]
[null,"01503","数字科技产品业务及研发员","金融、软件工程、计算机等相关专业",null,2,null,null,2]
["安徽建工集团设备租赁服务有限公司","01601","技术员","机械设计制造及其自动化、电气工程、自动控制等相关专业",null,2,3,null,5,"0551-62865012"]
["安徽建工建筑工业化智能建造集团有限公司","01701","技术员","智能建造、土木工程等相关专业",null,6,4,null,10]
["安徽建工智能钢构制造集团有限公司","01801","钢结构深化设计岗","机械设计、机械应用等相关专业",null,2,4,null,6]
["安徽建工集团新时代物业管理有限公司","01901","物业管理岗","物业管理、公共关系等管理学相关专业",null,2,5,null,7]
["安徽建工集团新时代酒店管理有限公司","02001","酒店管理岗","酒店管理、公共关系等管理类相关专业",null,2,5,null,7]
["安徽建工集团控股\n有限公司","02101","创新发展研究院","人工智能、大数据管理与应用、财政学、国际贸易等专业",3,4,null,null,7]
[null,"02102","专业工程师","土木工程、测绘工程、路桥工程、水利工程、港航工程等工程类专业",null,1,2,null,{"$f":"SUM(E78:H78)","v":3}]
[null,"02103","法务专员","法学类相关专业\n（要求法律职业资格A证）",null,1,1,null,2]
[null,"02104","市场开发与投资专员","工程管理、金融、经济、投资等专业",null,2,null,null,2]
[null,"02105","党务专员/纪检专员","中文、汉语言文学、新闻学、思想政治、哲学等相关专业\n（要求党员）",null,1,1,null,2]
[null,"02106","行政专员","行政管理、公共事业管理、劳动与社会保障、人力资源管理等相关专业",null,1,1,null,2]
[null,"02107","信息化专员","软件工程、计算机科学与技术等相关专业",null,2,null,null,2]
["合计",{"$nulls":3},{"$f":"SUM(E5:E83)","v":6},{"$f":"SUM(F5:F83)","v":116},{"$f":"SUM(G5:G83)","v":200},{"$f":"SUM(H5:H83)","v":4},{"$f":"SUM(I5:I83)","v":326}]